fUSD/lending_fUSD_20250304
["ID","MTS","AMOUNT","RATE_DAILY","PERIOD"]
[355362684,1741080409404,-1360.23,0.00010993,2]
[355362685,1741080409431,-1250.09,0.00010993,2]
[355362686,1741080409459,-510.53,0.00010993,2]
[355362687,1741080409485,-1618.69,0.00010993,2]
[355362688,1741080409511,-655.25,0.00010993,2]
[355362689,1741080409536,-500.0,0.00010993,2]
[355362690,1741080409560,-509.6,0.00010993,2]
[355362691,1741080409584,-1056.53,0.00010993,2]
[355362692,1741080409615,-1190.01,0.00010993,2]
[355362693,1741080409642,-666.99,0.00010993,2]
[355362694,1741080409669,-500.0,0.00010993,2]
[355362695,1741080409698,-271.97361497,0.00010993,2]
[355362696,1741080409722,-598.34,0.00010993,2]
[355362697,1741080409748,-695.69,0.00010993,2]
[355362698,1741080409774,-686.96,0.00010993,2]
[355362699,1741080409799,-677.48,0.00010993,2]
[355362700,1741080409824,-500.0,0.00010993,2]
[355362701,1741080409848,-500.0,0.00010993,2]
[355362702,1741080409873,-500.0,0.00010993,2]
[355362703,1741080409897,-725.98,0.00010993,2]
[355362704,1741080409922,-718.08,0.00010993,2]
[355362705,1741080409947,-833.49,0.00010993,2]
[355362706,1741080409971,-500.0,0.00010993,2]
[355362707,1741080409995,-1199.88,0.00010993,2]
[355362708,1741080410020,-500.0,0.00010993,2]
[355362709,1741080410046,-745.52,0.00010993,2]
[355362710,1741080410072,-500.0,0.00010993,2]
[355362711,1741080410098,-369.37,0.00010993,2]
[355362712,1741080410123,-500.0,0.00010993,2]
[355362713,1741080410148,-1298.52,0.00010993,2]
[355362714,1741080410172,-671.64,0.00010993,2]
[355362715,1741080410198,-2292.55,0.00010993,2]
[355362716,1741080410223,-500.0,0.00010993,2]
[355362717,1741080410249,-1639.43,0.00010993,2]
[355362718,1741080410275,-1220.38,0.00010993,2]
[355362719,1741080410300,-500.0,0.00010993,2]
[355362720,1741080410325,-500.0,0.00010993,2]
[355362721,1741080410350,-645.24,0.00010993,2]
[355362722,1741080410375,-1394.28,0.00010993,2]
[355362723,1741080410400,-519.02,0.00010993,2]
[355362724,1741080410425,-925.65,0.00010993,2]
[355362725,1741080410450,-538.61,0.00010993,2]
[355362726,1741080410475,-1108.24,0.00010993,2]
[355362727,1741080410500,-250.01661771,0.00010993,2]
[355362728,1741080410524,-593.76,0.00010993,2]
[355362729,1741080410549,-1228.77,0.00010993,2]
[355362730,1741080410574,-800.66,0.00010993,2]
[355362731,1741080410601,-500.0,0.00010993,2]
[355362732,1741080410628,-500.0,0.00010993,2]
[355362733,1741080410655,-422.50322595,0.00010993,2]
[355362734,1741080410682,-554.99,0.00010993,2]
[355362735,1741080410710,-500.0,0.00010993,2]
[355362736,1741080410735,-1233.82,0.00010993,2]
[355362737,1741080410761,-722.82,0.00010993,2]
[355362738,1741080410792,-500.0,0.00010993,2]
[355362739,1741080410818,-1904.82,0.00010993,2]
[355362740,1741080410844,-640.0,0.00010993,2]
[355362741,1741080410869,-608.49,0.00010993,2]
[355362742,1741080411080,-1000.81,0.00010993,2]
[355362743,1741080411106,-859.18,0.00010993,2]
[355362744,1741080411132,-628.54,0.00010993,2]
[355362745,1741080411158,-1092.78,0.00010993,2]
[355362746,1741080411184,-517.48940156,0.00010993,2]
[355362747,1741080411210,-1208.84,0.00010993,2]
[355362748,1741080411237,-500.0,0.00010993,2]
[355362749,1741080411268,-630.22,0.00010993,2]
[355362750,1741080411295,-595.07,0.00010993,2]
[355362751,1741080411321,-500.0,0.00010993,2]
[355362752,1741080411346,-828.64,0.00010993,2]
[355362753,1741080411372,-769.04,0.00010993,2]
[355362754,1741080411397,-657.33,0.00010993,2]
[355362755,1741080411423,-151.0,0.00010993,2]
[355362756,1741080411449,-151.0,0.00010993,2]
[355362757,1741080411474,-246.41715741,0.00010993,2]
[355362758,1741080411499,-151.0,0.00010993,2]
[355362759,1741080411525,-811.19,0.00010993,2]
[355362760,1741080411553,-23217.5,0.00010993,2]
[355362761,1741080411578,-675.92,0.00010993,2]
[355362762,1741080411607,-500.0,0.00010993,2]
[355362763,1741080411634,-513.21,0.00010993,2]
[355362764,1741080411661,-528.27353447,0.00010993,2]
[355362765,1741080411689,-963.22,0.00010993,2]
[355362766,1741080411715,-681.74,0.00010993,2]
[355362767,1741080411741,-2530.93,0.00010993,2]
[355362768,1741080411768,-1301.41,0.00010993,2]
[355362769,1741080411794,-722.05,0.00010993,2]
[355362770,1741080411820,-743.71,0.00010993,2]
[355362771,1741080411845,-603.81986784,0.00010993,2]
[355362772,1741080411885,-5541.26,0.00010993,2]
[355362773,1741080411912,-548.16,0.00010993,2]
[355362774,1741080411939,-1060.18,0.00010993,2]
[355362775,1741080411976,-2660.43,0.00010993,2]
[355362776,1741080412003,-791.73,0.00010993,2]
[355362777,1741080412031,-2326.55,0.00010993,2]
[355362778,1741080412058,-5187.47,0.00010993,2]
[355362779,1741080412084,-538.26,0.00010993,2]
[355362780,1741080412111,-686.63,0.00010993,2]
[355362781,1741080412138,-4333.9,0.00010993,2]
[355362782,1741080412165,-516.94,0.00010993,2]
[355362783,1741080412192,-500.0,0.00010993,2]
[355362784,1741080412222,-500.0,0.00010993,2]
[355362785,1741080412249,-500.0,0.00010993,2]
[355362786,1741080412275,-3116.14,0.00010993,2]
[355362787,1741080412303,-29391.25,0.00010993,2]
[355362788,1741080412330,-500.0,0.00010993,2]
[355362789,1741080412356,-500.0,0.00010993,2]
[355362790,1741080412383,-1051.87,0.00010993,2]
[355362791,1741080412409,-917.13,0.00010993,2]
[355362792,1741080412440,-4006.24,0.00010993,2]
[355362793,1741080412469,-1632.58,0.00010993,2]
[355362794,1741080412496,-503.61,0.00010993,2]
[355362795,1741080412525,-781.46,0.00010993,2]
[355362796,1741080412553,-673.52,0.00010993,2]
[355362797,1741080412581,-3871.07,0.00010993,2]
[355362798,1741080412611,-500.0,0.00010993,2]
[355362799,1741080412641,-2235.5,0.00010993,2]
[355362800,1741080412668,-500.0,0.00010993,2]
[355362801,1741080412699,-3757.11,0.00010993,2]
[355362802,1741080412731,-504.2,0.00010993,2]
[355362803,1741080412759,-500.0,0.00010993,2]
[355362804,1741080412785,-801.97,0.00010993,2]
[355362805,1741080412813,-2863.82,0.00010993,2]
[355362806,1741080412839,-500.0,0.00010993,2]
[355362807,1741080412864,-512.11213775,0.00010993,2]
[355362808,1741080412890,-3226.94,0.00010993,2]
[355362809,1741080412917,-1641.13,0.00010993,2]
[355362810,1741080412944,-500.0,0.00010993,2]
[355362811,1741080412972,-1222.07,0.00010993,2]
[355362812,1741080412999,-515.06,0.00010993,2]
[355362813,1741080413029,-500.0,0.00010993,2]
[355362814,1741080413056,-1079.58,0.00010993,2]
[355362815,1741080413084,-5693.42,0.00010993,2]
[355362816,1741080413112,-1310.68,0.00010993,2]
[355362817,1741080413139,-1130.82,0.00010993,2]
[355362818,1741080413166,-501.77812681,0.00010993,2]
[355362819,1741080413192,-2942.86,0.00010993,2]
[355362820,1741080413220,-1435.03,0.00010993,2]
[355362821,1741080413247,-2440.9,0.00010993,2]
[355362822,1741080413273,-505.9031886,0.00010993,2]
[355362823,1741080413299,-500.0,0.00010993,2]
[355362824,1741080413325,-2230.59,0.00010993,2]
[355362825,1741080413351,-205.538299,0.00010993,2]
[355362826,1741080413377,-500.0,0.00010993,2]
[355362827,1741080413403,-971.59,0.00010993,2]
[355362828,1741080413428,-4013.1,0.00010993,2]
[355362829,1741080413456,-500.0,0.00010993,2]
[355362830,1741080413481,-723.18,0.00010993,2]
[355362831,1741080413507,-8308.4,0.00010993,2]
[355362832,1741080413534,-672.520001,0.00010993,2]
[355362833,1741080413559,-672.520001,0.00010993,2]
[355362834,1741080413585,-672.520001,0.00010993,2]
[355362835,1741080413620,-1223.46,0.00010993,2]
[355362836,1741080413647,-937.99,0.00010993,2]
[355362837,1741080413675,-3048.72,0.00010993,2]
[355362838,1741080413921,-500.0,0.00010993,2]
[355362839,1741080413946,-500.0,0.00010993,2]
[355362840,1741080413975,-500.0,0.00010993,2]
[355362841,1741080414002,-3895.41,0.00010993,2]
[355362842,1741080414030,-865.93,0.00010993,2]
[355362843,1741080414056,-672.520001,0.00010993,2]
[355362844,1741080414082,-672.520001,0.00010993,2]
[355362845,1741080414109,-1575.97,0.00010993,2]
[355362846,1741080414134,-672.520001,0.00010993,2]
[355362847,1741080414160,-667.52,0.00010993,2]
[355362848,1741080414185,-716.54,0.00010993,2]
[355362849,1741080414214,-745.33,0.00010993,2]
[355362850,1741080414241,-500.0,0.00010993,2]
[355362851,1741080414268,-1897.36,0.00010993,2]
[355362852,1741080414293,-512.55182746,0.00010993,2]
[355362853,1741080414319,-500.0,0.00010993,2]
[355362854,1741080414344,-520.69687891,0.00010993,2]
[355362855,1741080414368,-151.910542,0.00010993,2]
[355362856,1741080414394,-2995.37,0.00010993,2]
[355362857,1741080414419,-608.04,0.00010993,2]
[355362858,1741080414445,-1050.71,0.00010993,2]
[355362859,1741080414471,-500.0,0.00010993,2]
[355362860,1741080414496,-1432.5,0.00010993,2]
[355362861,1741080414521,-1351.3,0.00010993,2]
[355362862,1741080414547,-1039.82,0.00010993,2]
[355362863,1741080414572,-500.0,0.00010993,2]
[355362864,1741080414597,-489.29220424,0.00010993,2]
[355362865,1741080414628,-581.82739585,0.00010993,2]
[355362866,1741080414654,-1007.7,0.00010993,2]
[355362867,1741080414679,-500.0,0.00010993,2]
[355362868,1741080414708,-631.75,0.00010993,2]
[355362869,1741080414735,-538.1,0.00010993,2]
[355362870,1741080414761,-578.94,0.00010993,2]
[355362871,1741080414787,-589.15146078,0.00010993,2]
[355362872,1741080414812,-500.0,0.00010993,2]
[355362873,1741080414838,-707.5,0.00010993,2]
[355362874,1741080414865,-1032.32,0.00010993,2]
[355362875,1741080414892,-2374.69,0.00010993,2]
[355362876,1741080414918,-503.26003219,0.00010993,2]
[355362877,1741080414943,-528.7,0.00010993,2]
[355362878,1741080414969,-500.0,0.00010993,2]
[355362879,1741080414995,-2660.15,0.00010993,2]
[355362880,1741080415021,-500.0,0.00010993,2]
[355362881,1741080415048,-500.0,0.00010993,2]
[355362882,1741080415075,-505.82,0.00010993,2]
[355362883,1741080415101,-500.0,0.00010993,2]
[355362884,1741080415127,-500.0,0.00010993,2]
[355362885,1741080415153,-500.0,0.00010993,2]
[355362886,1741080415179,-1427.78,0.00010993,2]
[355362887,1741080415206,-514.78456388,0.00010993,2]
[355362888,1741080415233,-953.16,0.00010993,2]
[355362889,1741080415258,-500.0,0.00010993,2]
[355362890,1741080415283,-2163.16,0.00010993,2]
[355362891,1741080415308,-500.0,0.00010993,2]
[355362892,1741080415334,-500.0,0.00010993,2]
[355362893,1741080415360,-5078.78,0.00010993,2]
[355362894,1741080415388,-648.65,0.00010993,2]
[355362895,1741080415414,-500.0,0.00010993,2]
[355362896,1741080415439,-1363.19,0.00010993,2]
[355362897,1741080415466,-2884.79,0.00010993,2]
[355362898,1741080415493,-500.0,0.00010993,2]
[355362899,1741080415518,-500.0,0.00010993,2]
[355362900,1741080415546,-519.89156194,0.00010993,2]
[355362901,1741080415571,-721.8,0.00010993,2]
[355362902,1741080415598,-20330.42,0.00010993,2]
[355362903,1741080415629,-500.0,0.00010993,2]
[355362904,1741080415655,-2050.96,0.00010993,2]
[355362905,1741080415681,-500.0,0.00010993,2]
[355362906,1741080415710,-514.32585757,0.00010993,2]
[355362907,1741080415737,-500.0,0.00010993,2]
[355362908,1741080415761,-500.0,0.00010993,2]
[355362909,1741080415786,-505.58487714,0.00010993,2]
[355362910,1741080415812,-4772.8,0.00010993,2]
[355362911,1741080415837,-500.0,0.00010993,2]
[355362912,1741080415864,-3432.33,0.00010993,2]
[355362913,1741080415888,-506.39932707,0.00010993,2]
[355362914,1741080415914,-3734.87,0.00010993,2]
[355362915,1741080415939,-502.29058485,0.00010993,2]
[355362916,1741080415964,-500.0,0.00010993,2]
[355362917,1741080415990,-578.54,0.00010993,2]
[355362918,1741080416017,-1507.22,0.00010993,2]
[355362919,1741080416044,-500.0,0.00010993,2]
[355362920,1741080416071,-500.0,0.00010993,2]
[355362921,1741080416100,-472.07128108,0.00010993,2]
[355362922,1741080416128,-500.0,0.00010993,2]
[355362923,1741080416155,-505.84845188,0.00010993,2]
[355362924,1741080416181,-501.77108668,0.00010993,2]
[355362925,1741080416209,-3538.84,0.00010993,2]
[355362926,1741080416236,-2092.6,0.00010993,2]
[355362927,1741080416263,-504.26349904,0.00010993,2]
[355362928,1741080416291,-500.0,0.00010993,2]
[355362929,1741080416320,-372.44349842,0.00010993,2]
[355362930,1741080416347,-156.0,0.00010994,3]
[355362931,1741080416376,-500.0,0.00010994,2]
[355362932,1741080416403,-504.09147997,0.00010994,2]
[355362933,1741080416639,-500.0,0.00010994,2]
[355362934,1741080416666,-500.0,0.00010994,2]
[355362935,1741080416695,-508.0194795,0.00010994,2]
[355362936,1741080416723,-538.41,0.00010994,2]
[355362937,1741080416749,-503.86900607,0.00010994,2]
[355362938,1741080416776,-760.85,0.00010994,2]
[355362939,1741080416802,-503.93424974,0.00010994,2]
[355362940,1741080416829,-500.0,0.00010994,2]
[355362941,1741080416855,-500.0,0.00010994,2]
[355362942,1741080416880,-502.02682956,0.00010994,2]
[355362943,1741080416906,-500.0,0.00010994,2]
[355362944,1741080416931,-187.3111549,0.00010994,2]
[355362945,1741080416973,-532.13566886,0.00010994,2]
[355362946,1741080417002,-500.0,0.00010994,2]
[355362947,1741080417032,-645.12,0.00010994,2]
[355362948,1741080417062,-500.0,0.00010994,2]
[355362949,1741080417091,-586.7,0.00010994,2]
[355362950,1741080417120,-500.0,0.00010994,2]
[355362951,1741080417148,-502.90222636,0.00010994,2]
[355362952,1741080417179,-518.71908619,0.00010994,2]
[355362953,1741080417209,-513.81529993,0.00010994,2]
[355362954,1741080417239,-656.44,0.00010994,2]
[355362955,1741080417267,-500.0,0.00010994,2]
[355362956,1741080417296,-500.0,0.00010994,2]
[355362957,1741080417326,-500.0,0.00010994,2]
[355362958,1741080417355,-258.96569818,0.00010994,2]
[355362959,1741080417382,-500.0,0.00010994,2]
[355362960,1741080417410,-500.0,0.00010994,2]
[355362961,1741080417438,-507.62228563,0.00010994,2]
[355362962,1741080417471,-500.0,0.00010994,2]
[355362963,1741080417499,-505.35082433,0.00010994,2]
[355362964,1741080417533,-500.0,0.00010994,2]
[355362965,1741080417563,-500.0,0.00010994,2]
[355362966,1741080417590,-500.0,0.00010994,2]
[355362967,1741080417620,-503.04332839,0.00010994,2]
[355362968,1741080417648,-502.74154746,0.00010994,2]
[355362969,1741080417678,-522.10899132,0.00010994,2]
[355362970,1741080417707,-507.0377993,0.00010994,2]
[355362971,1741080417736,-852.89,0.00010994,2]
[355362972,1741080417765,-500.0,0.00010994,2]
[355362973,1741080417792,-523.23277266,0.00010994,2]
[355362974,1741080417822,-500.0,0.00010994,2]
[355362975,1741080417848,-500.0,0.00010994,2]
[355362976,1741080417876,-602.43,0.00010994,2]
[355362977,1741080417903,-506.08041169,0.00010994,2]
[355362978,1741080417929,-500.0,0.00010994,2]
[355362979,1741080417957,-879.89,0.00010994,2]
[355362980,1741080417983,-500.0,0.00010994,2]
[355362981,1741080418009,-613.35,0.00010994,2]
[355362982,1741080418037,-500.0,0.00010994,2]
[355362983,1741080418062,-322.9399991,0.00010994,2]
[355362984,1741080418088,-500.0,0.00010994,2]
[355362985,1741080418120,-500.0,0.00010994,2]
[355362986,1741080418147,-500.0,0.00010994,2]
[355362987,1741080418174,-500.0,0.00010994,2]
[355362988,1741080418200,-944.01,0.00010994,2]
[355362989,1741080418227,-500.0,0.00010994,2]
[355362990,1741080418254,-501.77342332,0.00010994,2]
[355362991,1741080418283,-516.61876544,0.00010994,2]
[355362992,1741080418311,-1110.17,0.00010994,2]
[355362993,1741080418338,-500.0,0.00010994,2]
[355362994,1741080418364,-506.42338019,0.00010994,2]
[355362995,1741080418390,-503.15618274,0.00010994,2]
[355362996,1741080418416,-502.01294036,0.00010994,2]
[355362997,1741080418441,-500.0,0.00010994,2]
[355362998,1741080418468,-544.06118326,0.00010994,2]
[355362999,1741080418495,-500.0,0.00010994,2]
[355363000,1741080418523,-502.03680914,0.00010994,2]
[355363001,1741080418549,-685.79,0.00010994,2]
[355363002,1741080418576,-921.88,0.00010994,2]
[355363003,1741080418604,-515.92599424,0.00010994,2]
[355363004,1741080418631,-520.41978651,0.00010994,2]
[355363005,1741080418656,-540.4626487,0.00010994,2]
[355363006,1741080418682,-500.0,0.00010994,2]
[355363007,1741080418715,-500.0,0.00010994,2]
[355363008,1741080418741,-500.0,0.00010994,2]
[355363009,1741080418766,-1049.91,0.00010994,2]
[355363010,1741080418793,-503.46241202,0.00010994,2]
[355363011,1741080418820,-322.05479949,0.00010994,2]
[355363012,1741080418847,-594.76507119,0.00010994,2]
[355363013,1741080418874,-500.0,0.00010994,2]
[355363014,1741080418901,-500.0,0.00010994,2]
[355363015,1741080418928,-500.0,0.00010994,2]
[355363016,1741080418954,-500.0,0.00010994,2]
[355363017,1741080418980,-500.0,0.00010994,2]
[355363018,1741080419005,-503.2232278,0.00010994,2]
[355363019,1741080419031,-690.19,0.00010994,2]
[355363020,1741080419058,-500.0,0.00010994,2]
[355363021,1741080419083,-500.0,0.00010994,2]
[355363022,1741080419109,-711.29,0.00010994,2]
[355363023,1741080419135,-500.0,0.00010994,2]
[355363024,1741080419161,-502.40317005,0.00010994,2]
[355363025,1741080419186,-855.54,0.00010994,2]
[355363026,1741080419212,-500.0,0.00010994,2]
[355363027,1741080419247,-500.0,0.00010994,2]
[355363028,1741080419273,-500.0,0.00010994,2]
[355363029,1741080419570,-1321.16,0.00010994,2]
[355363030,1741080419599,-500.0,0.00010994,2]
[355363031,1741080419629,-633.94663049,0.00010994,2]
[355363032,1741080419654,-500.0,0.00010994,2]
[355363033,1741080419680,-500.0,0.00010994,2]
[355363034,1741080419706,-533.23,0.00010994,2]
[355363035,1741080419731,-1442.0,0.00010994,2]
[355363036,1741080419756,-500.0,0.00010994,2]
[355363037,1741080419781,-500.0,0.00010994,2]
[355363038,1741080419806,-500.0,0.00010994,2]
[355363039,1741080419831,-903.23,0.00010994,2]
[355363040,1741080419857,-500.0,0.00010994,2]
[355363041,1741080419884,-500.0,0.00010994,2]
[355363042,1741080419911,-404.41255572,0.00010994,2]
[355363043,1741080419936,-511.38065122,0.00010994,2]
[355363044,1741080419962,-500.0,0.00010994,2]
[355363045,1741080419987,-500.0,0.00010994,2]
[355363046,1741080420013,-500.0,0.00010994,2]
[355363047,1741080420039,-691.47,0.00010994,2]
[355363048,1741080420068,-511.22936853,0.00010994,2]
[355363049,1741080420095,-3055.55,0.00010994,2]
[355363050,1741080420122,-500.0,0.00010994,2]
[355363051,1741080420149,-505.00973048,0.00010994,2]
[355363052,1741080420175,-1140.57,0.00010994,2]
[355363053,1741080420204,-755.68,0.00010994,2]
[355363054,1741080420233,-500.0,0.00010994,2]
[355363055,1741080420261,-500.0,0.00010994,2]
[355363056,1741080420289,-500.0,0.00010994,2]
[355363057,1741080420316,-500.0,0.00010994,2]
[355363058,1741080420343,-500.0,0.00010994,2]
[355363059,1741080420369,-500.0,0.00010994,2]
[355363060,1741080420395,-500.0,0.00010994,2]
[355363061,1741080420420,-500.0,0.00010994,2]
[355363062,1741080420444,-506.29278242,0.00010994,2]
[355363063,1741080420471,-500.0,0.00010994,2]
[355363064,1741080420498,-500.0,0.00010994,2]
[355363065,1741080420524,-1456.66,0.00010994,2]
[355363066,1741080420549,-500.0,0.00010994,2]
[355363067,1741080420575,-500.0,0.00010994,2]
[355363068,1741080420601,-510.92735234,0.00010994,2]
[355363069,1741080420631,-1443.72,0.00010994,2]
[355363070,1741080420656,-500.0,0.00010994,2]
[355363071,1741080420681,-600.32,0.00010994,2]
[355363072,1741080420709,-500.0,0.00010994,2]
[355363073,1741080420734,-500.0,0.00010994,2]
[355363074,1741080420760,-500.0,0.00010994,2]
[355363075,1741080420785,-1034.61,0.00010994,2]
[355363076,1741080420811,-640.03540138,0.00010994,2]
[355363077,1741080420838,-1928.52,0.00010994,2]
[355363078,1741080420866,-500.0,0.00010994,2]
[355363079,1741080420894,-570.77789511,0.00010994,2]
[355363080,1741080420920,-500.0,0.00010994,2]
[355363081,1741080420948,-2405.65,0.00010994,2]
[355363082,1741080420976,-500.0,0.00010994,2]
[355363083,1741080421002,-500.0,0.00010994,2]
[355363084,1741080421030,-500.0,0.00010994,2]
[355363085,1741080421058,-1319.96,0.00010994,2]
[355363086,1741080421085,-1966.68,0.00010994,2]
[355363087,1741080421113,-500.0,0.00010994,2]
[355363088,1741080421140,-500.0,0.00010994,2]
[355363089,1741080421167,-500.0,0.00010994,2]
[355363090,1741080421193,-500.0,0.00010994,2]
[355363091,1741080421221,-500.0,0.00010994,2]
[355363092,1741080421249,-500.0,0.00010994,2]
[355363093,1741080421276,-1594.635,0.00010994,2]
[355363094,1741080421303,-171.496,0.00010994,2]
[355363095,1741080421329,-500.0,0.00010994,2]
[355363096,1741080421355,-689.07,0.00010994,2]
[355363097,1741080421380,-986.49,0.00010994,2]
[355363098,1741080421406,-500.0,0.00010994,2]
[355363099,1741080421431,-1121.7,0.00010994,2]
[355363100,1741080421456,-2546.89,0.00010994,2]
[355363101,1741080421483,-1099.7,0.00010994,2]
[355363102,1741080421509,-500.0,0.00010994,2]
[355363103,1741080421535,-500.0,0.00010994,2]
[355363104,1741080421561,-500.0,0.00010994,2]
[355363105,1741080421587,-2063.04,0.00010994,2]
[355363106,1741080421614,-500.0,0.00010994,2]
[355363107,1741080421640,-500.0,0.00010994,2]
[355363108,1741080421667,-500.0,0.00010994,2]
[355363109,1741080421693,-500.0,0.00010994,2]
[355363110,1741080421721,-500.0,0.00010994,2]
[355363111,1741080421748,-987.02,0.00010994,2]
[355363112,1741080421780,-500.0,0.00010994,2]
[355363113,1741080421807,-500.0,0.00010994,2]
[355363114,1741080421833,-500.0,0.00010994,2]
[355363115,1741080421860,-500.0,0.00010994,2]
[355363116,1741080421887,-500.0,0.00010994,2]
[355363117,1741080421914,-500.0,0.00010994,2]
[355363118,1741080421943,-619.65,0.00010994,2]
[355363119,1741080421977,-1435.29,0.00010994,2]
[355363120,1741080422007,-500.93738129,0.00010994,2]
[355363121,1741080422035,-501.11782681,0.00010994,2]
[355363122,1741080422064,-500.0,0.00010994,2]
[355363123,1741080422091,-500.0,0.00010994,2]
[355363124,1741080422119,-500.0,0.00010994,2]
[355363125,1741080422329,-500.0,0.00010994,2]
[355363126,1741080422357,-1466.54,0.00010994,2]
[355363127,1741080422386,-500.0,0.00010994,2]
[355363128,1741080422414,-500.0,0.00010994,2]
[355363129,1741080422442,-500.0,0.00010994,2]
[355363130,1741080422471,-1442.25,0.00010994,2]
[355363131,1741080422496,-500.0,0.00010994,2]
[355363132,1741080422524,-500.0,0.00010994,2]
[355363133,1741080422551,-500.0,0.00010994,2]
[355363134,1741080422578,-503.05852439,0.00010994,2]
[355363135,1741080422606,-500.0,0.00010994,2]
[355363136,1741080422634,-500.0,0.00010994,2]
[355363137,1741080422662,-500.0,0.00010994,2]
[355363138,1741080422690,-501.95306068,0.00010994,2]
[355363139,1741080422724,-500.0,0.00010994,2]
[355363140,1741080422751,-500.0,0.00010994,2]
[355363141,1741080422780,-500.0,0.00010994,2]
[355363142,1741080422808,-1243.88,0.00010994,2]
[355363143,1741080422835,-1625.71,0.00010994,2]
[355363144,1741080422861,-500.0,0.00010994,2]
[355363145,1741080422888,-500.0,0.00010994,2]
[355363146,1741080422915,-500.0,0.00010994,2]
[355363147,1741080422942,-1395.94,0.00010994,2]
[355363148,1741080422971,-1065.85,0.00010994,2]
[355363149,1741080422996,-502.17050116,0.00010994,2]
[355363150,1741080423024,-500.0,0.00010994,2]
[355363151,1741080423052,-504.12279587,0.00010994,2]
[355363152,1741080423080,-516.27059961,0.00010994,2]
[355363153,1741080423108,-500.0,0.00010994,2]
[355363154,1741080423136,-500.0,0.00010994,2]
[355363155,1741080423164,-1431.8,0.00010994,2]
[355363156,1741080423192,-500.0,0.00010994,2]
[355363157,1741080423223,-500.0,0.00010994,2]
[355363158,1741080423252,-883.7,0.00010994,2]
[355363159,1741080423282,-500.0,0.00010994,2]
[355363160,1741080423310,-500.0,0.00010994,2]
[355363161,1741080423338,-2360.89,0.00010994,2]
[355363162,1741080423365,-500.0,0.00010994,2]
[355363163,1741080423392,-500.0,0.00010994,2]
[355363164,1741080423418,-500.0,0.00010994,2]
[355363165,1741080423446,-202.3688292,0.00010994,2]
[355363166,1741080423476,-500.0,0.00010994,2]
[355363167,1741080423503,-503.6905129,0.00010994,2]
[355363168,1741080423531,-1816.81,0.00010994,2]
[355363169,1741080423558,-500.0,0.00010994,2]
[355363170,1741080423584,-503.68349753,0.00010994,2]
[355363171,1741080423616,-727.46,0.00010994,2]
[355363172,1741080423646,-500.0,0.00010994,2]
[355363173,1741080423674,-1325.25,0.00010994,2]
[355363174,1741080423702,-500.0,0.00010994,2]
[355363175,1741080423734,-500.0,0.00010994,2]
[355363176,1741080423763,-500.0,0.00010994,2]
[355363177,1741080423794,-500.0,0.00010994,2]
[355363178,1741080423822,-500.0,0.00010994,2]
[355363179,1741080423849,-500.0,0.00010994,2]
[355363180,1741080423877,-150.0,0.00010994,2]
[355363181,1741080423904,-500.0,0.00010994,2]
[355363182,1741080423932,-500.0,0.00010994,2]
[355363183,1741080423961,-2108.31,0.00010994,2]